[Event "*** Titled Tuesday Blitz"]
[Site "Chess.com"]
[Date "2018.04.03"]
[Round "3"]
[White "TastyFrenchFries"]
[Black "PrinceMurad09"]
[Result "1-0"]
[WhiteElo "2302"]
[BlackElo "2319"]
[TimeControl "180+2"]
[EndTime "13:32:59 PDT"]
[Termination "TastyFrenchFries won by resignation"]

1. e4 {[%clk 0:03:01]} 1... c5 {[%clk 0:03:00.7]} 2. Nf3 {[%clk 0:03:01.2]} 2...
d6 {[%clk 0:03:01.6]} 3. Bb5+ {[%clk 0:03:00.8]} 3... Nd7 {[%clk 0:03:00]} 4.
O-O {[%clk 0:03:00.8]} 4... a6 {[%clk 0:03:00.9]} 5. Bd3 {[%clk 0:03:01.1]} 5...
g6 {[%clk 0:03:01.8]} 6. c3 {[%clk 0:03:02.5]} 6... Bg7 {[%clk 0:03:02.4]} 7.
Bc2 {[%clk 0:03:04.4]} 7... e6 {[%clk 0:03:00.1]} 8. d3 {[%clk 0:02:43.9]} 8...
Ngf6 {[%clk 0:02:59.8]} 9. Nbd2 {[%clk 0:02:42.4]} 9... O-O {[%clk 0:03:00.8]}
10. h3 {[%clk 0:02:42.1]} 10... b5 {[%clk 0:03:01.9]} 11. Re1 {[%clk 0:02:42.1]}
11... Bb7 {[%clk 0:03:03.1]} 12. Nf1 {[%clk 0:02:41.7]} 12... Qc7 {[%clk
0:03:03.1]} 13. Bg5 {[%clk 0:02:40.1]} 13... h6 {[%clk 0:02:42.9]} 14. Bd2
{[%clk 0:02:31.6]} 14... Rac8 {[%clk 0:02:30.8]} 15. Ng3 {[%clk 0:02:30.6]}
15... d5 {[%clk 0:02:30.7]} 16. a4 {[%clk 0:02:30.3]} 16... dxe4 {[%clk
0:02:23.8]} 17. Nxe4 {[%clk 0:02:32.2]} 17... Rfd8 {[%clk 0:02:21]} 18. Nxf6+
{[%clk 0:02:30.6]} 18... Nxf6 {[%clk 0:02:20.8]} 19. axb5 {[%clk 0:02:32]} 19...
axb5 {[%clk 0:02:21.7]} 20. Qe2 {[%clk 0:02:32.7]} 20... Nd5 {[%clk 0:02:19.4]}
21. Ne5 {[%clk 0:02:32.2]} 21... b4 {[%clk 0:02:07.7]} 22. Bb3 {[%clk
0:02:25.9]} 22... Ne7 {[%clk 0:02:00.4]} 23. Nxf7 {[%clk 0:01:54.1]} 23... Kxf7
{[%clk 0:01:27.8]} 24. Qxe6+ {[%clk 0:01:50.7]} 24... Ke8 {[%clk 0:01:26.6]} 25.
Qf7+ {[%clk 0:01:51.8]} 25... Kd7 {[%clk 0:01:28]} 26. Rxe7+ {[%clk 0:01:47.4]}
1-0

[Event "*** Titled Tuesday Blitz"]
[Site "Chess.com"]
[Date "2018.04.03"]
[Round "3"]
[White "PenguinPacks"]
[Black "Goala"]
[Result "0-1"]
[WhiteElo "2146"]
[BlackElo "2332"]
[TimeControl "180+2"]
[EndTime "13:34:27 PDT"]
[Termination "Goala won by resignation"]

1. d4 {[%clk 0:03:01.9]} 1... e6 {[%clk 0:03:00.9]} 2. c4 {[%clk 0:02:58.7]}
2... Nf6 {[%clk 0:03:02.2]} 3. g3 {[%clk 0:02:58.2]} 3... c5 {[%clk 0:03:03.1]}
4. d5 {[%clk 0:02:58.8]} 4... exd5 {[%clk 0:03:05]} 5. cxd5 {[%clk 0:03:00.7]}
5... d6 {[%clk 0:03:06.2]} 6. Nc3 {[%clk 0:03:02.2]} 6... g6 {[%clk 0:03:07]} 7.
Bg2 {[%clk 0:03:03.5]} 7... Bg7 {[%clk 0:03:08.3]} 8. Nf3 {[%clk 0:03:05.1]}
8... O-O {[%clk 0:03:09.4]} 9. O-O {[%clk 0:03:06.7]} 9... a6 {[%clk 0:03:10.7]}
10. a4 {[%clk 0:03:08]} 10... Nh5 {[%clk 0:03:12.2]} 11. Nd2 {[%clk 0:03:08.2]}
11... Nd7 {[%clk 0:03:08.2]} 12. Nc4 {[%clk 0:03:07.9]} 12... Ne5 {[%clk
0:03:09.1]} 13. Nxe5 {[%clk 0:02:54.5]} 13... Bxe5 {[%clk 0:03:11]} 14. f4
{[%clk 0:02:05.9]} 14... Bd4+ {[%clk 0:03:09.5]} 15. e3 {[%clk 0:02:07]} 15...
Bg7 {[%clk 0:03:08.3]} 16. e4 {[%clk 0:02:07.2]} 16... Bd4+ {[%clk 0:02:44.7]}
17. Kh1 {[%clk 0:02:07.8]} 17... Bd7 {[%clk 0:02:31.6]} 18. a5 {[%clk
0:02:03.8]} 18... Re8 {[%clk 0:02:29]} 19. Qf3 {[%clk 0:00:38.2]} 19... Bb5
{[%clk 0:01:39.6]} 20. Nxb5 {[%clk 0:00:17.7]} 20... axb5 {[%clk 0:01:41.5]} 21.
Bd2 {[%clk 0:00:19]} 21... Nf6 {[%clk 0:01:39.2]} 22. Qb3 {[%clk 0:00:18.5]}
22... Nxe4 {[%clk 0:01:37.3]} 23. Bxe4 {[%clk 0:00:17]} 23... Rxe4 {[%clk
0:01:39.2]} 24. Qxb5 {[%clk 0:00:18.3]} 24... Qe8 {[%clk 0:01:29.1]} 25. Rae1
{[%clk 0:00:19.4]} 25... Rxe1 {[%clk 0:01:22.4]} 26. Rxe1 {[%clk 0:00:21.3]}
26... Qxb5 {[%clk 0:01:22.5]} 0-1

[Event "*** Titled Tuesday Blitz"]
[Site "Chess.com"]
[Date "2018.04.03"]
[Round "3"]
[White "JozefKneht"]
[Black "severomorskij"]
[Result "0-1"]
[WhiteElo "2414"]
[BlackElo "2668"]
[TimeControl "180+2"]
[EndTime "13:34:34 PDT"]
[Termination "severomorskij won by resignation"]

1. e4 {[%clk 0:03:01.9]} 1... c5 {[%clk 0:02:59.6]} 2. Nf3 {[%clk 0:03:02.6]}
2... Nc6 {[%clk 0:03:00.7]} 3. d4 {[%clk 0:03:03.9]} 3... cxd4 {[%clk 0:03:02]}
4. Nxd4 {[%clk 0:03:05.7]} 4... e5 {[%clk 0:03:03.6]} 5. Nb5 {[%clk 0:03:05.7]}
5... d6 {[%clk 0:03:04.7]} 6. c4 {[%clk 0:03:05.3]} 6... Be7 {[%clk 0:03:05.2]}
7. b3 {[%clk 0:03:05.4]} 7... f5 {[%clk 0:03:05.2]} 8. exf5 {[%clk 0:03:05]}
8... Bxf5 {[%clk 0:03:06.1]} 9. Bd3 {[%clk 0:03:05.1]} 9... e4 {[%clk
0:03:05.6]} 10. Be2 {[%clk 0:03:05.5]} 10... a6 {[%clk 0:03:06.8]} 11. N5c3
{[%clk 0:03:06.3]} 11... Nf6 {[%clk 0:03:07.5]} 12. O-O {[%clk 0:03:05.5]} 12...
O-O {[%clk 0:03:08.2]} 13. Bg5 {[%clk 0:02:56.5]} 13... Kh8 {[%clk 0:02:59.8]}
14. Qd2 {[%clk 0:02:52.5]} 14... h6 {[%clk 0:02:58.1]} 15. Bh4 {[%clk 0:02:48]}
15... b5 {[%clk 0:02:54]} 16. cxb5 {[%clk 0:02:45.2]} 16... axb5 {[%clk
0:02:53.6]} 17. Nxb5 {[%clk 0:02:46.1]} 17... d5 {[%clk 0:02:45.8]} 18. Nd4
{[%clk 0:02:35.1]} 18... Nxd4 {[%clk 0:02:44.4]} 19. Qxd4 {[%clk 0:02:35.6]}
19... Rc8 {[%clk 0:02:37.8]} 20. Nc3 {[%clk 0:02:31.6]} 20... Qa5 {[%clk
0:02:31.1]} 21. Rac1 {[%clk 0:02:06.7]} 21... Ba3 {[%clk 0:01:39.2]} 22. Bxf6
{[%clk 0:02:04.8]} 22... gxf6 {[%clk 0:01:39.9]} 23. Nxd5 {[%clk 0:01:41.5]}
23... Bxc1 {[%clk 0:01:30.9]} 24. Ne7 {[%clk 0:01:35]} 24... Rcd8 {[%clk
0:01:29.3]} 25. Qa1 {[%clk 0:01:28.4]} 25... Bd2 {[%clk 0:01:27.1]} 26. Nc6
{[%clk 0:01:23.3]} 26... Qc3 {[%clk 0:01:25.5]} 27. Nxd8 {[%clk 0:01:20.3]}
27... Qxa1 {[%clk 0:01:22.8]} 28. Rxa1 {[%clk 0:01:20.3]} 28... Rxd8 {[%clk
0:01:24.2]} 29. Bc4 {[%clk 0:01:13.4]} 29... e3 {[%clk 0:01:20.9]} 30. a4 {[%clk
0:01:10.1]} 30... Bc3 {[%clk 0:01:12.9]} 31. Rc1 {[%clk 0:01:10]} 31... Bd4
{[%clk 0:01:10.8]} 0-1

[Event "*** Titled Tuesday Blitz"]
[Site "Chess.com"]
[Date "2018.04.03"]
[Round "3"]
[White "Supernotar"]
[Black "Aariow"]
[Result "0-1"]
[WhiteElo "2175"]
[BlackElo "2333"]
[TimeControl "180+2"]
[EndTime "13:34:36 PDT"]
[Termination "Aariow won by resignation"]

1. d4 {[%clk 0:03:00.3]} 1... d5 {[%clk 0:03:00.5]} 2. c4 {[%clk 0:03:01.4]}
2... c6 {[%clk 0:03:00.9]} 3. e3 {[%clk 0:03:02.5]} 3... Nf6 {[%clk 0:03:01.6]}
4. Bd3 {[%clk 0:03:03.4]} 4... e6 {[%clk 0:03:01.8]} 5. Nf3 {[%clk 0:03:04.4]}
5... Nbd7 {[%clk 0:03:02.3]} 6. Nbd2 {[%clk 0:03:04.7]} 6... Be7 {[%clk
0:03:01.3]} 7. O-O {[%clk 0:03:05.3]} 7... O-O {[%clk 0:03:01.7]} 8. e4 {[%clk
0:03:06.6]} 8... dxe4 {[%clk 0:03:01.6]} 9. Nxe4 {[%clk 0:03:07.7]} 9... b6
{[%clk 0:03:03.2]} 10. Qe2 {[%clk 0:03:07.9]} 10... Bb7 {[%clk 0:03:04]} 11. b3
{[%clk 0:03:09]} 11... c5 {[%clk 0:03:04.9]} 12. Nxf6+ {[%clk 0:03:09.5]} 12...
Bxf6 {[%clk 0:03:02.7]} 13. Bb2 {[%clk 0:03:10.2]} 13... Bxf3 {[%clk 0:03:01.3]}
14. Qxf3 {[%clk 0:03:10.8]} 14... cxd4 {[%clk 0:03:00]} 15. Qe4 {[%clk
0:02:59.8]} 15... g6 {[%clk 0:02:56.4]} 16. Bxd4 {[%clk 0:02:59]} 16... Bxd4
{[%clk 0:02:50.8]} 17. Qxd4 {[%clk 0:02:59.9]} 17... Nc5 {[%clk 0:02:52.3]} 18.
Qxd8 {[%clk 0:02:59.7]} 18... Raxd8 {[%clk 0:02:53.7]} 19. Bc2 {[%clk
0:03:00.3]} 19... Rd2 {[%clk 0:02:53.6]} 20. Rac1 {[%clk 0:03:00.9]} 20... Rfd8
{[%clk 0:02:50.4]} 21. g3 {[%clk 0:03:01.4]} 21... e5 {[%clk 0:02:50.8]} 22.
Rfd1 {[%clk 0:02:56.8]} 22... f5 {[%clk 0:02:47.6]} 23. Kf1 {[%clk 0:02:55.7]}
23... Kf7 {[%clk 0:02:46]} 24. Ke1 {[%clk 0:02:56.7]} 24... R2d4 {[%clk
0:02:40.9]} 25. Rxd4 {[%clk 0:02:55.7]} 25... exd4 {[%clk 0:02:42]} 26. Kd2
{[%clk 0:02:55.2]} 26... d3 {[%clk 0:02:36.8]} 27. Bb1 {[%clk 0:02:54.4]} 27...
Ne4+ {[%clk 0:02:37.1]} 28. Ke3 {[%clk 0:02:55.3]} 28... d2 {[%clk 0:02:32.8]}
29. Rf1 {[%clk 0:02:55.3]} 29... d1=Q {[%clk 0:02:29.6]} 30. Rxd1 {[%clk
0:02:52.8]} 30... Rxd1 {[%clk 0:02:31.5]} 31. Bd3 {[%clk 0:02:53.2]} 31... Nxf2
{[%clk 0:02:31.2]} 32. Be2 {[%clk 0:02:53.8]} 32... Ng4+ {[%clk 0:02:30.7]} 33.
Kf3 {[%clk 0:02:53.3]} 33... Nxh2+ {[%clk 0:02:31.5]} 34. Kg2 {[%clk 0:02:54.2]}
34... Rd2 {[%clk 0:02:32.9]} 35. Kf2 {[%clk 0:02:55.2]} 35... Ng4+ {[%clk
0:02:33.1]} 36. Kf3 {[%clk 0:02:56.7]} 36... Kf6 {[%clk 0:02:31.1]} 37. a4
{[%clk 0:02:57]} 37... Ke5 {[%clk 0:02:31.7]} 38. b4 {[%clk 0:02:55.1]} 38...
Rb2 {[%clk 0:02:32]} 39. b5 {[%clk 0:02:56.2]} 39... Rb3+ {[%clk 0:02:32.8]} 40.
Kg2 {[%clk 0:02:56.9]} 40... Re3 {[%clk 0:02:32.5]} 41. Bf3 {[%clk 0:02:58.1]}
41... Rc3 {[%clk 0:02:22.5]} 42. Bd5 {[%clk 0:02:58.6]} 42... Ne3+ {[%clk
0:02:19.4]} 43. Kh3 {[%clk 0:02:59.6]} 43... Nxd5 {[%clk 0:02:19.8]} 44. cxd5
{[%clk 0:02:54]} 44... f4 {[%clk 0:02:17.7]} 45. d6 {[%clk 0:02:54.1]} 45...
Rxg3+ {[%clk 0:02:18.2]} 46. Kh4 {[%clk 0:02:55.6]} 46... g5+ {[%clk 0:02:17.1]}
47. Kh5 {[%clk 0:02:56.5]} 47... Kxd6 {[%clk 0:02:16.8]} 48. a5 {[%clk
0:02:57.3]} 48... f3 {[%clk 0:02:12.5]} 49. a6 {[%clk 0:02:58.1]} 49... Rh3+
{[%clk 0:02:10.8]} 50. Kg4 {[%clk 0:02:56.8]} 50... Rh4+ {[%clk 0:02:11.1]} 51.
Kxf3 {[%clk 0:02:56.8]} 51... Rf4+ {[%clk 0:02:11]} 52. Ke3 {[%clk 0:02:57.8]}
52... Kc5 {[%clk 0:02:11.5]} 53. Kd3 {[%clk 0:02:59]} 53... Kxb5 {[%clk
0:02:12.8]} 54. Ke3 {[%clk 0:03:00.5]} 54... Kxa6 {[%clk 0:02:14.7]} 55. Kd3
{[%clk 0:03:02]} 55... Kb5 {[%clk 0:02:16.6]} 56. Ke3 {[%clk 0:03:03.5]} 56...
Kc6 {[%clk 0:02:18.5]} 57. Kd3 {[%clk 0:03:05.1]} 57... a6 {[%clk 0:02:20.4]}
58. Ke3 {[%clk 0:03:06.7]} 58... a5 {[%clk 0:02:22.3]} 59. Kd3 {[%clk
0:03:08.6]} 59... b5 {[%clk 0:02:24.2]} 60. Ke3 {[%clk 0:03:10.5]} 60... Kc5
{[%clk 0:02:26.1]} 61. Kd3 {[%clk 0:03:12.4]} 61... h6 {[%clk 0:02:27.7]} 62.
Ke3 {[%clk 0:03:14.3]} 62... h5 {[%clk 0:02:29.6]} 63. Kd3 {[%clk 0:03:16.1]}
63... Kd5 {[%clk 0:02:31.1]} 64. Ke3 {[%clk 0:03:18]} 64... Ke5 {[%clk
0:02:30.8]} 65. Kd2 {[%clk 0:03:19.9]} 65... Kf5 {[%clk 0:02:32]} 66. Ke3 {[%clk
0:03:21.8]} 66... Rc4 {[%clk 0:02:31.2]} 67. Kd2 {[%clk 0:03:23.7]} 67... Ke4
{[%clk 0:02:31.2]} 68. Ke2 {[%clk 0:03:25]} 68... Rc2+ {[%clk 0:02:31.9]} 69.
Kd1 {[%clk 0:03:26.5]} 69... Ra2 {[%clk 0:02:32.7]} 70. Ke1 {[%clk 0:03:27.6]}
70... a4 {[%clk 0:02:31.6]} 71. Kf1 {[%clk 0:03:28.8]} 71... b4 {[%clk 0:02:33]}
72. Kg1 {[%clk 0:03:26]} 72... b3 {[%clk 0:02:34]} 73. Kf1 {[%clk 0:03:27.2]}
73... a3 {[%clk 0:02:34.9]} 74. Ke1 {[%clk 0:03:28.5]} 74... Kf5 {[%clk
0:02:36.1]} 75. Kd1 {[%clk 0:03:29.8]} 75... Kg6 {[%clk 0:02:38]} 76. Kc1 {[%clk
0:03:29.4]} 76... Kh7 {[%clk 0:02:39.9]} 77. Kb1 {[%clk 0:03:30.5]} 77... Kg7
{[%clk 0:02:41.8]} 78. Kc1 {[%clk 0:03:31.2]} 78... Kf8 {[%clk 0:02:43.7]} 79.
Kb1 {[%clk 0:03:32.7]} 79... Ke8 {[%clk 0:02:45.6]} 80. Kc1 {[%clk 0:03:34.2]}
80... Kd8 {[%clk 0:02:47.5]} 81. Kb1 {[%clk 0:03:35.9]} 81... Kd7 {[%clk
0:02:49.4]} 82. Kc1 {[%clk 0:03:37.8]} 82... Kc8 {[%clk 0:02:51.3]} 83. Kb1
{[%clk 0:03:39.7]} 83... Kc7 {[%clk 0:02:53.2]} 84. Kc1 {[%clk 0:03:41.6]} 84...
Kb8 {[%clk 0:02:55.1]} 85. Kb1 {[%clk 0:03:43.5]} 85... Kb7 {[%clk 0:02:57]} 86.
Kc1 {[%clk 0:03:45.4]} 86... h4 {[%clk 0:02:58.1]} 87. Kb1 {[%clk 0:03:47.3]}
87... g4 {[%clk 0:02:59.3]} 88. Kc1 {[%clk 0:03:49.2]} 88... Ka8 {[%clk
0:03:00.8]} 89. Kb1 {[%clk 0:03:51.1]} 89... Ka7 {[%clk 0:03:01.3]} 90. Kc1
{[%clk 0:03:53]} 90... Ka6 {[%clk 0:03:03]} 91. Kb1 {[%clk 0:03:54.9]} 91... Ka5
{[%clk 0:03:04.7]} 92. Kc1 {[%clk 0:03:56.8]} 92... Ka4 {[%clk 0:03:06.3]} 93.
Kb1 {[%clk 0:03:58.7]} 93... Kb4 {[%clk 0:03:08.1]} 94. Kc1 {[%clk 0:04:00.6]}
94... Kb5 {[%clk 0:03:09.9]} 95. Kb1 {[%clk 0:04:02.5]} 95... Kb6 {[%clk
0:03:11.6]} 96. Kc1 {[%clk 0:04:04.4]} 96... Kc5 {[%clk 0:03:13.4]} 97. Kb1
{[%clk 0:04:06.3]} 97... Kc4 {[%clk 0:03:15.2]} 98. Kc1 {[%clk 0:04:08.2]} 98...
Kd4 {[%clk 0:03:17.1]} 99. Kb1 {[%clk 0:04:10]} 99... Kd5 {[%clk 0:03:19]} 100.
Kc1 {[%clk 0:04:11.8]} 100... Ke5 {[%clk 0:03:20.9]} 101. Kb1 {[%clk 0:04:13.6]}
101... Ke4 {[%clk 0:03:22.8]} 102. Kc1 {[%clk 0:04:15.4]} 102... Kf4 {[%clk
0:03:24.7]} 103. Kb1 {[%clk 0:04:17.3]} 103... Kf5 {[%clk 0:03:26.6]} 104. Kc1
{[%clk 0:04:19.1]} 104... Kg5 {[%clk 0:03:28.5]} 105. Kb1 {[%clk 0:04:21]}
105... Kh5 {[%clk 0:03:30.4]} 106. Kc1 {[%clk 0:04:22.9]} 106... Kg6 {[%clk
0:03:32.3]} 107. Kb1 {[%clk 0:04:24.8]} 107... h3 {[%clk 0:03:33.7]} 108. Kc1
{[%clk 0:04:26.7]} 108... Kh6 {[%clk 0:03:35]} 109. Kb1 {[%clk 0:04:28.6]}
109... Kh7 {[%clk 0:03:36.6]} 110. Kc1 {[%clk 0:04:30.5]} 110... Kg7 {[%clk
0:03:38.2]} 111. Kb1 {[%clk 0:04:32.4]} 111... Kg8 {[%clk 0:03:39.8]} 112. Kc1
{[%clk 0:04:34.3]} 112... Kf8 {[%clk 0:03:41.3]} 113. Kb1 {[%clk 0:04:36.2]}
113... Ke8 {[%clk 0:03:42.9]} 114. Kc1 {[%clk 0:04:38.1]} 114... Kd8 {[%clk
0:03:44.5]} 115. Kb1 {[%clk 0:04:40]} 115... Kd7 {[%clk 0:03:46]} 116. Kc1
{[%clk 0:04:41.9]} 116... Kd6 {[%clk 0:03:47.5]} 117. Kb1 {[%clk 0:04:43.8]}
117... Kd5 {[%clk 0:03:49.2]} 118. Kc1 {[%clk 0:04:45.7]} 118... Kd4 {[%clk
0:03:50.7]} 119. Kb1 {[%clk 0:04:47.6]} 0-1

[Event "*** Titled Tuesday Blitz"]
[Site "Chess.com"]
[Date "2018.04.03"]
[Round "3"]
[White "Mikhail_Golubev"]
[Black "julinha97"]
[Result "0-1"]
[WhiteElo "2268"]
[BlackElo "2230"]
[TimeControl "180+2"]
[EndTime "13:34:44 PDT"]
[Termination "julinha97 won by resignation"]

1. e4 {[%clk 0:03:01.9]} 1... c5 {[%clk 0:02:57.7]} 2. Nf3 {[%clk 0:03:01.7]}
2... d6 {[%clk 0:02:59.3]} 3. d4 {[%clk 0:03:01.4]} 3... cxd4 {[%clk 0:03:00.5]}
4. Nxd4 {[%clk 0:03:01.5]} 4... Nf6 {[%clk 0:03:02.1]} 5. Nc3 {[%clk 0:03:02.1]}
5... g6 {[%clk 0:03:03.7]} 6. Be3 {[%clk 0:03:02.6]} 6... Bg7 {[%clk 0:03:05]}
7. f3 {[%clk 0:03:02.8]} 7... O-O {[%clk 0:03:06.6]} 8. Qd2 {[%clk 0:03:03.2]}
8... Nc6 {[%clk 0:03:08]} 9. O-O-O {[%clk 0:03:03.2]} 9... d5 {[%clk 0:03:09.1]}
10. Qe1 {[%clk 0:03:01.1]} 10... e5 {[%clk 0:03:09.9]} 11. Nxc6 {[%clk
0:02:59.5]} 11... bxc6 {[%clk 0:03:11.6]} 12. exd5 {[%clk 0:03:00.1]} 12... Nxd5
{[%clk 0:03:13.2]} 13. Bc4 {[%clk 0:02:58.7]} 13... Be6 {[%clk 0:03:14.4]} 14.
Kb1 {[%clk 0:02:57.2]} 14... a5 {[%clk 0:03:12.2]} 15. Bc5 {[%clk 0:02:18.7]}
15... Re8 {[%clk 0:03:10.7]} 16. Ne4 {[%clk 0:02:13.8]} 16... f5 {[%clk
0:03:11.1]} 17. Nd6 {[%clk 0:01:34]} 17... Rf8 {[%clk 0:03:11.2]} 18. g4 {[%clk
0:01:26.6]} 18... Rb8 {[%clk 0:03:01.9]} 19. gxf5 {[%clk 0:01:25.2]} 19... gxf5
{[%clk 0:02:51.7]} 20. Rg1 {[%clk 0:01:24.5]} 20... Qf6 {[%clk 0:02:39.1]} 21.
Qf2 {[%clk 0:01:06.6]} 21... Kh8 {[%clk 0:02:37.7]} 22. Rg3 {[%clk 0:00:56.9]}
22... e4 {[%clk 0:02:07.4]} 23. Bd4 {[%clk 0:00:53.9]} 23... Nc3+ {[%clk
0:02:08.2]} 24. Ka1 {[%clk 0:00:42.6]} 24... Nxd1 {[%clk 0:01:45.7]} 25. Rxg7
{[%clk 0:00:08.8]} 25... Nxf2 {[%clk 0:01:23.3]} 0-1

[Event "*** Titled Tuesday Blitz"]
[Site "Chess.com"]
[Date "2018.04.03"]
[Round "3"]
[White "Firouzja2003"]
[Black "pKiLz5Rn9b"]
[Result "0-1"]
[WhiteElo "2741"]
[BlackElo "2645"]
[TimeControl "180+2"]
[EndTime "13:35:02 PDT"]
[Termination "pKiLz5Rn9b won by resignation"]

1. d4 {[%clk 0:02:52.5]} 1... Nf6 {[%clk 0:02:58]} 2. c4 {[%clk 0:02:53.7]} 2...
e6 {[%clk 0:02:58.2]} 3. Nf3 {[%clk 0:02:55.1]} 3... d5 {[%clk 0:02:57.8]} 4. g3
{[%clk 0:02:56.6]} 4... Bb4+ {[%clk 0:02:55.6]} 5. Bd2 {[%clk 0:02:57.1]} 5...
Be7 {[%clk 0:02:56.3]} 6. Bg2 {[%clk 0:02:58.6]} 6... O-O {[%clk 0:02:57.5]} 7.
O-O {[%clk 0:03:00.1]} 7... c6 {[%clk 0:02:59]} 8. Qc2 {[%clk 0:03:01.1]} 8...
Ne4 {[%clk 0:02:58.4]} 9. Nc3 {[%clk 0:03:00.7]} 9... Nxd2 {[%clk 0:02:58.2]}
10. Nxd2 {[%clk 0:03:01.9]} 10... Nd7 {[%clk 0:02:58.9]} 11. e4 {[%clk 0:03:02]}
11... dxe4 {[%clk 0:02:57.8]} 12. Ndxe4 {[%clk 0:03:02.2]} 12... f5 {[%clk
0:02:58.6]} 13. Nd2 {[%clk 0:03:03.1]} 13... e5 {[%clk 0:02:59.7]} 14. d5 {[%clk
0:03:03.7]} 14... e4 {[%clk 0:02:48.9]} 15. Rad1 {[%clk 0:03:01.2]} 15... Qc7
{[%clk 0:02:47.2]} 16. Nb3 {[%clk 0:02:52.8]} 16... Ne5 {[%clk 0:02:27.4]} 17.
Nd4 {[%clk 0:02:50.8]} 17... Bf6 {[%clk 0:02:07.9]} 18. d6 {[%clk 0:02:47.2]}
18... Qd8 {[%clk 0:01:41.5]} 19. d7 {[%clk 0:02:47.8]} 19... Qxd7 {[%clk
0:01:39.6]} 20. Bh3 {[%clk 0:02:24]} 20... Qf7 {[%clk 0:01:25.2]} 21. Nce2
{[%clk 0:02:18.4]} 21... g6 {[%clk 0:01:22.8]} 22. b3 {[%clk 0:02:05.3]} 22...
Bd7 {[%clk 0:01:17.6]} 23. Nf4 {[%clk 0:01:56.6]} 23... Rad8 {[%clk 0:01:16.4]}
24. Bg2 {[%clk 0:01:45.5]} 24... Bc8 {[%clk 0:01:11.1]} 25. Nde2 {[%clk
0:01:46.3]} 25... g5 {[%clk 0:00:58.1]} 26. Nh3 {[%clk 0:01:46.8]} 26... Qh5
{[%clk 0:00:57.7]} 27. Rxd8 {[%clk 0:01:47.7]} 27... Rxd8 {[%clk 0:00:58]} 28.
Rd1 {[%clk 0:01:49.6]} 28... Rxd1+ {[%clk 0:00:53.1]} 29. Qxd1 {[%clk
0:01:51.5]} 29... f4 {[%clk 0:00:40.6]} 30. Qd6 {[%clk 0:01:30.8]} 30... Qxe2
{[%clk 0:00:31.2]} 31. Kh1 {[%clk 0:01:27.9]} 31... Nf3 {[%clk 0:00:24.7]} 0-1

[Event "*** Titled Tuesday Blitz"]
[Site "Chess.com"]
[Date "2018.04.03"]
[Round "3"]
[White "matiss90"]
[Black "Jbd735"]
[Result "1-0"]
[WhiteElo "2359"]
[BlackElo "2218"]
[TimeControl "180+2"]
[EndTime "13:35:02 PDT"]
[Termination "matiss90 won by resignation"]

1. e4 {[%clk 0:03:01.9]} 1... e5 {[%clk 0:03:00.4]} 2. Nf3 {[%clk 0:02:58.3]}
2... Nc6 {[%clk 0:03:01.5]} 3. Bb5 {[%clk 0:02:58.8]} 3... a6 {[%clk 0:03:02.7]}
4. Ba4 {[%clk 0:03:00.1]} 4... Nf6 {[%clk 0:03:03.1]} 5. O-O {[%clk 0:02:58.8]}
5... Be7 {[%clk 0:03:04.3]} 6. d3 {[%clk 0:02:57.8]} 6... b5 {[%clk 0:03:00.6]}
7. Bb3 {[%clk 0:02:58.5]} 7... d6 {[%clk 0:03:02.1]} 8. c3 {[%clk 0:02:58.4]}
8... O-O {[%clk 0:03:02]} 9. Nbd2 {[%clk 0:02:49.5]} 9... h6 {[%clk 0:02:58.8]}
10. Re1 {[%clk 0:02:47.5]} 10... Re8 {[%clk 0:02:58.6]} 11. Nf1 {[%clk
0:02:46.2]} 11... Bf8 {[%clk 0:02:59.1]} 12. h3 {[%clk 0:02:26.3]} 12... Na5
{[%clk 0:02:57.6]} 13. Bc2 {[%clk 0:02:25.8]} 13... c5 {[%clk 0:02:59.1]} 14. a4
{[%clk 0:02:23]} 14... Bb7 {[%clk 0:02:59.2]} 15. N1h2 {[%clk 0:01:57.4]} 15...
d5 {[%clk 0:02:49.1]} 16. axb5 {[%clk 0:01:51.3]} 16... axb5 {[%clk 0:02:40.4]}
17. Ng4 {[%clk 0:01:35.1]} 17... Nxg4 {[%clk 0:02:37.9]} 18. hxg4 {[%clk
0:01:35.7]} 18... d4 {[%clk 0:02:16.3]} 19. g5 {[%clk 0:01:29.4]} 19... hxg5
{[%clk 0:02:14]} 20. Nxg5 {[%clk 0:01:15.1]} 20... Be7 {[%clk 0:01:56.8]} 21.
Nxf7 {[%clk 0:00:57.8]} 21... Kxf7 {[%clk 0:01:51.5]} 22. b4 {[%clk 0:00:52.8]}
22... cxb4 {[%clk 0:01:39.9]} 23. Rxa5 {[%clk 0:00:43.7]} 23... Rxa5 {[%clk
0:01:28.8]} 24. Bb3+ {[%clk 0:00:40.2]} 24... Qd5 {[%clk 0:00:35.6]} 25. exd5
{[%clk 0:00:39.1]} 25... Bd6 {[%clk 0:00:34.9]} 1-0

[Event "*** Titled Tuesday Blitz"]
[Site "Chess.com"]
[Date "2018.04.03"]
[Round "3"]
[White "Indianlad"]
[Black "olomi007"]
[Result "1-0"]
[WhiteElo "2771"]
[BlackElo "2545"]
[TimeControl "180+2"]
[EndTime "13:35:08 PDT"]
[Termination "Indianlad won by resignation"]

1. d4 {[%clk 0:02:59]} 1... Nf6 {[%clk 0:03:00.3]} 2. Nf3 {[%clk 0:02:57.1]}
2... e6 {[%clk 0:03:00.8]} 3. c4 {[%clk 0:02:57.5]} 3... d5 {[%clk 0:03:01.9]}
4. Nc3 {[%clk 0:02:58.6]} 4... Nbd7 {[%clk 0:03:03]} 5. e3 {[%clk 0:02:54.6]}
5... b6 {[%clk 0:03:00.4]} 6. b3 {[%clk 0:02:52.3]} 6... Bb7 {[%clk 0:02:59.6]}
7. Bb2 {[%clk 0:02:51.9]} 7... Bd6 {[%clk 0:02:59.8]} 8. cxd5 {[%clk 0:02:44.1]}
8... exd5 {[%clk 0:02:59.9]} 9. Nb5 {[%clk 0:02:39.9]} 9... Bb4+ {[%clk
0:02:53.3]} 10. Bc3 {[%clk 0:02:41.3]} 10... Be7 {[%clk 0:02:51.6]} 11. Bb2
{[%clk 0:02:41.6]} 11... O-O {[%clk 0:02:49.3]} 12. Bd3 {[%clk 0:02:41.7]} 12...
a6 {[%clk 0:02:30.3]} 13. Nc3 {[%clk 0:02:42]} 13... Re8 {[%clk 0:02:30.9]} 14.
O-O {[%clk 0:02:43]} 14... Bd6 {[%clk 0:02:31.5]} 15. Rc1 {[%clk 0:02:41]} 15...
Ne4 {[%clk 0:02:22]} 16. Rc2 {[%clk 0:02:36.2]} 16... Re6 {[%clk 0:02:16.7]} 17.
Ne2 {[%clk 0:02:36.9]} 17... Rh6 {[%clk 0:02:13.5]} 18. Ng3 {[%clk 0:02:37.7]}
18... Qf6 {[%clk 0:02:04.2]} 19. Ne5 {[%clk 0:02:25.9]} 19... Nxe5 {[%clk
0:01:59.1]} 20. dxe5 {[%clk 0:02:27.3]} 20... Bxe5 {[%clk 0:02:00.5]} 21. Bxe5
{[%clk 0:02:27.3]} 21... Qxe5 {[%clk 0:01:57.9]} 22. f4 {[%clk 0:02:27.8]} 22...
Qf6 {[%clk 0:01:34.5]} 23. Bxe4 {[%clk 0:02:27.9]} 23... dxe4 {[%clk 0:01:32.8]}
24. Rxc7 {[%clk 0:02:29.3]} 24... Qh4 {[%clk 0:01:24]} 25. Kf2 {[%clk
0:02:30.1]} 25... Rd8 {[%clk 0:01:19.9]} 26. Rd7 {[%clk 0:02:29.5]} 26... Rb8
{[%clk 0:01:03.9]} 27. Qd4 {[%clk 0:02:27.3]} 27... Rc6 {[%clk 0:00:58.6]} 28.
Rd1 {[%clk 0:02:20.3]} 28... g5 {[%clk 0:00:41.7]} 29. Rd8+ {[%clk 0:02:13.6]}
29... Rxd8 {[%clk 0:00:41]} 30. Qxd8+ {[%clk 0:02:15.4]} 30... Kg7 {[%clk
0:00:42.9]} 31. Kg1 {[%clk 0:01:41.2]} 31... Rf6 {[%clk 0:00:24.4]} 32. Rd6
{[%clk 0:01:35.5]} 32... gxf4 {[%clk 0:00:14.6]} 33. Qxf6+ {[%clk 0:01:31.6]}
33... Qxf6 {[%clk 0:00:14.9]} 34. Nh5+ {[%clk 0:01:33.1]} 1-0